bitfinex/quotes_BTCUSD_20241120
["timestamp","ask_amount","ask_price","bid_price","bid_amount"]
[1732084342618,0.23962982,92551.0,92550.0,0.28075858]
[1732084346687,0.45562982,92551.0,92550.0,0.28075858]
[1732084353322,0.45562982,92551.0,92550.0,0.29409032]
[1732084353536,0.45562982,92551.0,92550.0,0.28075858]
[1732084353763,0.44562982,92551.0,92550.0,0.28075858]
[1732084354008,0.45562982,92551.0,92550.0,0.28075858]
[1732084354674,0.45562982,92551.0,92550.0,0.29408955]
[1732084355157,0.45562982,92551.0,92550.0,0.28075858]
[1732084355651,0.45562982,92551.0,92550.0,0.29408942]
[1732084356092,0.45562982,92551.0,92550.0,0.28075858]
[1732084356972,0.44562982,92551.0,92550.0,0.28075858]
[1732084357196,0.45562982,92551.0,92550.0,0.28075858]
[1732084357643,0.45562982,92551.0,92550.0,0.29408943]
[1732084358089,0.45562982,92551.0,92550.0,0.28075858]
[1732084361420,0.44562982,92551.0,92550.0,0.28075858]
[1732084362587,0.44562982,92551.0,92550.0,0.05071446]
[1732084364335,0.49482982,92551.0,92550.0,0.05071446]
[1732084364526,0.53555168,92551.0,92550.0,0.05071446]
[1732084364998,0.53555168,92551.0,92550.0,0.00157803]
[1732084364999,1.07177229,92551.0,92550.0,0.00157803]
[1732084365222,0.85777229,92551.0,92550.0,0.00157803]
[1732084366360,1.10055373,92551.0,92550.0,0.00157803]
[1732084366819,1.31655373,92551.0,92550.0,0.00157803]
[1732084367048,1.10055373,92551.0,92550.0,0.00157803]
[1732084367517,0.85777229,92551.0,92550.0,0.00157803]
[1732084369026,0.85764848,92551.0,92550.0,0.00157803]
[1732084370160,0.108082,92522.0,92521.0,0.03594092]
[1732084370389,0.21714455,92522.0,92521.0,0.04924946]
[1732084370597,0.23935754,92522.0,92521.0,0.03594092]
[1732084370825,0.36445754,92522.0,92521.0,0.03594092]
[1732084371268,0.44816683,92522.0,92521.0,0.03594092]
[1732084376317,0.44816683,92522.0,92521.0,0.03679632]
[1732084377494,0.53187612,92522.0,92521.0,0.03189632]
[1732084377720,0.44816683,92522.0,92521.0,0.03189632]
[1732084377936,0.45016683,92522.0,92521.0,0.03189632]
[1732084378144,0.53387612,92522.0,92521.0,0.03189632]
[1732084378377,0.84987612,92522.0,92521.0,0.03189632]
[1732084378605,0.55016683,92522.0,92521.0,0.03189632]
[1732084378824,0.55016683,92522.0,92521.0,0.01027932]
[1732084379042,0.63387612,92522.0,92521.0,0.01027932]
[1732084379252,0.55016683,92522.0,92521.0,0.01027932]
[1732084380347,0.63387612,92522.0,92521.0,0.01027932]
[1732084380554,0.55016683,92522.0,92521.0,0.01027932]
[1732084381228,0.55016683,92522.0,92514.0,9.2e-07]
[1732084381229,0.34670858,92515.0,92514.0,9.2e-07]
[1732084381489,0.56815255,92515.0,92514.0,9.2e-07]
[1732084381701,1.16398101,92515.0,92514.0,9.2e-07]
[1732084384122,1.20689789,92515.0,92514.0,9.2e-07]
[1732084385196,1.29060718,92515.0,92514.0,9.2e-07]
[1732084388273,1.1231886,92515.0,92514.0,9.2e-07]
[1732084388484,1.20689789,92515.0,92514.0,9.2e-07]
[1732084389330,1.20489789,92515.0,92514.0,9.2e-07]
[1732084389762,1.20689789,92515.0,92514.0,9.2e-07]
[1732084389971,1.1231886,92515.0,92514.0,9.2e-07]
[1732084390219,1.20489789,92515.0,92514.0,9.2e-07]
[1732084397725,1.20689789,92515.0,92514.0,9.2e-07]
[1732084398391,0.4960886,92515.0,92514.0,9.2e-07]
[1732084398598,0.57979789,92515.0,92514.0,9.2e-07]
[1732084399041,1.21250718,92515.0,92514.0,9.2e-07]
[1732084399281,1.29740718,92515.0,92514.0,9.2e-07]
[1732084399731,1.29911678,92515.0,92514.0,9.2e-07]
[1732084401266,1.48990749,92515.0,92514.0,9.2e-07]
[1732084401483,1.29911678,92515.0,92514.0,9.2e-07]
[1732084402640,1.33274866,92515.0,92514.0,9.2e-07]
[1732084403327,1.33274858,92515.0,92514.0,9.2e-07]
[1732084406687,1.60724858,92515.0,92514.0,9.2e-07]
[1732084408509,1.33274858,92515.0,92514.0,9.2e-07]
[1732084409789,1.47747461,92515.0,92514.0,9.2e-07]
[1732084410471,1.85124947,92515.0,92514.0,9.2e-07]
[1732084411317,1.65770888,92515.0,92514.0,9.2e-07]
[1732084411531,1.85124947,92515.0,92514.0,9.2e-07]
[1732084411762,1.42957586,92515.0,92514.0,9.2e-07]
[1732084412433,1.16333,92515.0,92514.0,9.2e-07]
[1732084412657,1.33074858,92515.0,92514.0,9.2e-07]
[1732084413107,1.33274858,92515.0,92514.0,9.2e-07]
[1732084413371,1.42959598,92515.0,92514.0,9.2e-07]
[1732084413604,1.60724858,92515.0,92514.0,9.2e-07]
[1732084413827,1.70412061,92515.0,92514.0,9.2e-07]
[1732084414501,1.60724858,92515.0,92514.0,9.2e-07]
[1732084415417,1.93202953,92515.0,92514.0,9.2e-07]
[1732084415869,1.16333,92515.0,92514.0,9.2e-07]
[1732084416090,1.24703929,92515.0,92514.0,9.2e-07]
[1732084416524,1.57149994,92515.0,92514.0,9.2e-07]
[1732084417415,1.76504053,92515.0,92514.0,9.2e-07]
[1732084417812,1.57149994,92515.0,92514.0,9.2e-07]
[1732084418051,1.81342568,92515.0,92514.0,9.2e-07]
[1732084418439,1.57149994,92515.0,92514.0,9.2e-07]
[1732084419547,0.98859994,92515.0,92514.0,9.2e-07]
[1732084419771,0.66413929,92515.0,92514.0,9.2e-07]
[1732084420601,0.66421639,92515.0,92514.0,9.2e-07]
[1732084420814,0.98861523,92515.0,92514.0,9.2e-07]
[1732084421004,0.93871639,92515.0,92514.0,9.2e-07]
[1732084421208,1.26270342,92515.0,92514.0,9.2e-07]
[1732084421455,1.50462916,92515.0,92514.0,9.2e-07]
[1732084421924,1.31383845,92515.0,92514.0,9.2e-07]
[1732084422148,1.07191271,92515.0,92514.0,9.2e-07]
[1732084422812,1.07391271,92515.0,92514.0,9.2e-07]
[1732084425036,1.07371281,92515.0,92514.0,9.2e-07]
[1732084427164,1.34821281,92515.0,92514.0,9.2e-07]
[1732084427803,1.34621281,92515.0,92514.0,9.2e-07]
[1732084428016,1.34821281,92515.0,92514.0,9.2e-07]
[1732084428465,1.42941281,92515.0,92514.0,9.2e-07]
[1732084429117,0.01,92504.0,92503.0,0.0017088]
[1732084429325,0.40797617,92504.0,92503.0,0.0017088]
[1732084429531,0.40979183,92504.0,92503.0,0.0017088]
[1732084430300,0.3126905,92504.0,92503.0,0.0017088]
[1732084430529,0.5036425,92504.0,92503.0,0.0017088]
[1732084430879,0.78648601,92504.0,92503.0,0.0017088]
[1732084431244,0.61675235,92504.0,92503.0,0.0017088]
[1732084431419,0.78679471,92504.0,92503.0,0.0017088]
[1732084431789,0.78879471,92504.0,92503.0,0.0017088]
[1732084431903,0.78679471,92504.0,92503.0,0.0017088]
[1732084432553,0.4710956,92504.0,92503.0,0.0017088]
[1732084432756,0.78693701,92504.0,92503.0,0.0017088]
[1732084433389,0.82980286,92504.0,92503.0,0.0017088]
[1732084434136,0.83180286,92504.0,92503.0,0.0017088]
[1732084434344,1.02600552,92504.0,92503.0,0.0017088]
[1732084434752,0.83180286,92504.0,92503.0,0.0017088]
[1732084435995,0.48024069,92504.0,92503.0,0.0017088]
[1732084436210,0.83561026,92504.0,92503.0,0.0017088]
[1732084436424,0.48024069,92504.0,92503.0,0.0017088]
[1732084436630,0.65959993,92504.0,92503.0,0.0017088]
[1732084436967,0.83562312,92504.0,92503.0,0.0017088]
[1732084439297,0.84562312,92504.0,92503.0,0.0017088]
[1732084439939,1.0398302,92504.0,92503.0,0.0017088]
[1732084440381,0.84562312,92504.0,92503.0,0.0017088]
[1732084442763,0.44737484,92504.0,92503.0,0.0017088]
[1732084442995,0.80272778,92504.0,92503.0,0.0017088]
[1732084443337,0.99694091,92504.0,92503.0,0.0017088]
[1732084443831,0.59304181,92504.0,92503.0,0.0017088]
[1732084444053,0.99702019,92504.0,92503.0,0.0017088]
[1732084445132,2.09202019,92504.0,92503.0,0.0017088]
[1732084446613,2.18411563,92504.0,92503.0,0.0017088]
[1732084446821,1.94134953,92504.0,92503.0,0.0017088]
[1732084447025,2.13557502,92504.0,92503.0,0.0017088]
[1732084447694,2.26782492,92504.0,92503.0,0.0017088]
[1732084448116,2.02505882,92504.0,92503.0,0.0017088]
[1732084448324,2.02705882,92504.0,92503.0,0.0017088]
[1732084448549,2.2698372,92504.0,92503.0,0.0017088]
[1732084449202,2.02705882,92504.0,92503.0,0.0017088]
[1732084449410,2.26983459,92504.0,92503.0,0.0017088]
[1732084450765,2.00233459,92504.0,92503.0,0.0017088]
[1732084450983,1.17483459,92504.0,92503.0,0.0017088]
[1732084452191,1.17624115,92504.0,92503.0,0.0017088]
[1732084453477,1.09253186,92504.0,92503.0,0.0017088]
[1732084454012,2.10382257,92504.0,92503.0,0.0017088]
[1732084454221,1.09253186,92504.0,92503.0,0.0017088]
[1732084457135,1.09053186,92504.0,92503.0,0.0017088]
[1732084457334,1.09047625,92504.0,92503.0,0.0017088]
[1732084458814,1.09247625,92504.0,92503.0,0.0017088]
[1732084459274,3.36326751,92504.0,92503.0,0.0017088]
[1732084461330,3.36126751,92504.0,92503.0,0.0017088]
[1732084461535,3.36326751,92504.0,92503.0,0.0017088]
[1732084466379,3.12052683,92504.0,92503.0,0.0017088]
[1732084466590,0.94973557,92504.0,92503.0,0.0017088]
[1732084466779,0.94773557,92504.0,92503.0,0.0017088]
[1732084467598,0.94973557,92504.0,92503.0,0.0017088]
[1732084467981,0.94773557,92504.0,92503.0,0.0017088]
[1732084468396,0.94973557,92504.0,92503.0,0.0017088]
[1732084469616,2.68552683,92504.0,92503.0,0.0017088]
[1732084469832,2.42762205,92504.0,92503.0,0.0017088]
[1732084471427,2.51133134,92504.0,92503.0,0.0017088]
[1732084474970,3.7566226,92504.0,92503.0,0.0017088]
[1732084475421,3.7566226,92504.0,92496.0,0.0017092]
[1732084475422,0.230111,92497.0,92496.0,2e-07]
[1732084475639,0.69430862,92497.0,92496.0,2e-07]
[1732084475843,0.84999206,92497.0,92496.0,2e-07]
[1732084476056,1.01741064,92497.0,92496.0,2e-07]
[1732084476513,1.01593691,92497.0,92496.0,2e-07]
[1732084476964,2.91251888,92497.0,92496.0,2e-07]
[1732084477167,3.59630959,92497.0,92496.0,2e-07]
[1732084477378,3.68001888,92497.0,92496.0,2e-07]
[1732084477593,3.76372817,92497.0,92496.0,2e-07]
[1732084478714,3.68001888,92497.0,92496.0,2e-07]
[1732084480405,3.76372817,92497.0,92496.0,2e-07]
[1732084481531,3.6793143,92497.0,92496.0,2e-07]
[1732084481791,3.8932143,92497.0,92496.0,2e-07]
[1732084482700,4.09890888,92497.0,92496.0,2e-07]
[1732084484305,4.05039854,92497.0,92496.0,2e-07]
[1732084484469,3.8564143,92497.0,92496.0,2e-07]
[1732084484723,4.05039962,92497.0,92496.0,2e-07]
[1732084484959,3.8564143,92497.0,92496.0,2e-07]
[1732084485164,4.05039962,92497.0,92496.0,2e-07]
[1732084485371,3.8564143,92497.0,92496.0,2e-07]
[1732084485579,4.05039759,92497.0,92496.0,2e-07]
[1732084486201,3.85529639,92497.0,92496.0,2e-07]
[1732084486415,4.04928113,92497.0,92496.0,2e-07]
[1732084487291,3.85529639,92497.0,92496.0,2e-07]
[1732084487740,4.04928113,92497.0,92496.0,2e-07]
[1732084490527,3.85529639,92497.0,92496.0,2e-07]
[1732084491270,3.85567662,92497.0,92496.0,2e-07]
[1732084492885,3.85738662,92497.0,92496.0,2e-07]
[1732084495003,1.58659536,92497.0,92496.0,2e-07]
[1732084498849,1.50359536,92497.0,92496.0,2e-07]
[1732084500711,3.77438662,92497.0,92496.0,2e-07]
[1732084500949,4.01696823,92497.0,92496.0,2e-07]
[1732084501398,3.77438662,92497.0,92496.0,2e-07]
[1732084501869,0.01,92485.0,92456.0,0.118974]
[1732084502103,0.108138,92475.0,92469.0,0.108144]
[1732084502315,0.108138,92475.0,92470.0,0.108142]
[1732084502316,0.10906255,92474.0,92470.0,0.108142]
[1732084502535,0.10906255,92474.0,92469.0,0.108144]
[1732084502752,0.21720055,92474.0,92469.0,0.108144]
[1732084503622,0.21720055,92474.0,92469.0,0.108143]
[1732084504998,0.21720055,92474.0,92470.0,0.0051]
[1732084506093,0.108139,92473.0,92470.0,0.0051]
[1732084506320,0.10906255,92472.0,92470.0,0.0051]
[1732084509833,0.10906255,92472.0,92470.0,0.113242]
[1732084510073,0.10906255,92472.0,92470.0,0.0051]
[1732084511886,0.216269,92477.0,92470.0,0.0051]
[1732084511887,0.04388289,92486.0,92470.0,0.0051]
[1732084512101,0.24275161,92494.0,92481.0,0.108129]
[1732084512102,0.10906255,92485.0,92481.0,0.108129]
[1732084512498,0.10906255,92485.0,92471.0,0.14763987]
[1732084512499,0.10906255,92485.0,92482.0,0.108128]
[1732084513168,0.10906255,92485.0,92481.0,0.108129]
[1732084513435,0.10906255,92485.0,92484.0,0.108126]
[1732084513892,0.10906255,92485.0,92468.0,0.09791001]
[1732084513893,0.108127,92484.0,92468.0,0.09791001]
[1732084514115,0.10906255,92483.0,92477.0,0.108134]
[1732084514337,0.10906255,92483.0,92480.0,0.108131]
[1732084514767,0.10906255,92483.0,92482.0,0.108129]
[1732084515043,0.10906255,92483.0,92480.0,0.108131]
[1732084515730,0.10906255,92483.0,92481.0,0.108129]
[1732084515972,0.10906255,92483.0,92479.0,0.108132]
[1732084516409,0.10906255,92483.0,92481.0,0.108129]
[1732084516857,0.10906255,92483.0,92480.0,0.10813]
[1732084517294,0.10906255,92483.0,92478.0,0.108132]
[1732084517503,0.10906255,92483.0,92479.0,0.108131]
[1732084517715,0.10906255,92483.0,92480.0,0.108131]
[1732084518149,0.21719055,92483.0,92477.0,0.108133]
[1732084518356,0.21719055,92483.0,92477.0,0.216266]
[1732084518584,0.21719055,92483.0,92477.0,0.108133]
[1732084518819,0.21719055,92483.0,92478.0,0.108133]
[1732084519024,0.10906255,92483.0,92475.0,0.108137]
[1732084519198,0.10906255,92483.0,92472.0,0.15286871]
[1732084519199,0.108129,92482.0,92472.0,0.15286871]
[1732084519457,0.10906255,92481.0,92477.0,0.216268]
[1732084519681,0.10906255,92481.0,92477.0,0.108134]
[1732084519886,0.10906255,92481.0,92472.0,0.15286871]
[1732084520093,0.10906255,92481.0,92477.0,0.108133]
[1732084520721,0.10906255,92481.0,92472.0,0.15286871]
[1732084520722,0.10906255,92481.0,92473.0,0.108139]
[1732084520956,0.108137,92475.0,92469.0,0.108143]
[1732084521162,0.108137,92475.0,92468.0,0.19792407]
[1732084521163,0.10906255,92474.0,92473.0,0.108139]
[1732084521802,0.10906255,92474.0,92468.0,0.04550248]
[1732084522027,0.10906255,92474.0,92468.0,0.15364648]
[1732084522236,0.21720055,92474.0,92468.0,0.15364648]
[1732084522495,0.10906255,92474.0,92471.0,0.108141]
[1732084522733,0.10906255,92474.0,92468.0,0.15364648]
[1732084522734,0.10906255,92474.0,92470.0,0.108142]
[1732084523157,0.10906255,92474.0,92468.0,0.04550248]
[1732084523388,0.10906255,92474.0,92469.0,0.108143]
[1732084524034,0.10906255,92474.0,92470.0,0.108142]
[1732084524259,0.10906255,92474.0,92473.0,0.108139]
[1732084527618,0.2745,92485.0,92484.0,0.108126]
[1732084527824,0.10906255,92485.0,92484.0,0.108126]
[1732084532801,0.38356255,92485.0,92482.0,0.108129]
[1732084533011,0.10906255,92484.0,92477.0,0.108134]
[1732084533225,0.1318,92483.0,92476.0,0.09702362]
[1732084533452,0.10813,92481.0,92474.0,0.108137]
[1732084533664,0.10906255,92480.0,92474.0,0.216274]
[1732084533876,0.10906255,92480.0,92474.0,0.108137]
[1732084534781,0.10906255,92480.0,92474.0,0.216274]
[1732084535040,0.10906255,92480.0,92475.0,0.108136]
[1732084535929,0.10906255,92480.0,92474.0,0.108137]
[1732084536137,0.10906255,92480.0,92474.0,0.216274]
[1732084536349,0.10906255,92480.0,92474.0,0.108137]
[1732084536555,0.10906255,92480.0,92475.0,0.108137]
[1732084538264,0.10906255,92480.0,92477.0,0.108134]
[1732084538482,0.10906255,92480.0,92479.0,0.108132]
[1732084539168,0.10906255,92480.0,92476.0,0.07444405]
[1732084539383,0.10906255,92480.0,92475.0,0.108137]
[1732084539607,0.10906255,92480.0,92479.0,0.108132]
[1732084541130,0.0497,92487.0,92472.0,0.10814]
[1732084541333,0.10906255,92486.0,92483.0,0.108127]
[1732084542224,0.00171,92485.0,92483.0,0.108127]
[1732084542445,0.00171,92485.0,92480.0,0.10813]
[1732084542446,0.10906255,92484.0,92482.0,0.108128]
[1732084542697,0.10906255,92484.0,92477.0,0.108134]
[1732084542948,0.10906255,92484.0,92478.0,0.108133]
[1732084543173,0.10906255,92484.0,92482.0,0.108128]
[1732084543637,0.10906255,92484.0,92479.0,0.108132]
[1732084543870,0.10906255,92484.0,92482.0,0.108129]
[1732084544091,0.10906255,92484.0,92480.0,0.10813]
[1732084544296,0.10906255,92484.0,92482.0,0.108129]
[1732084545320,0.10906255,92484.0,92480.0,0.10813]
[1732084545735,0.10906255,92484.0,92480.0,0.216261]
[1732084545937,0.10906255,92484.0,92481.0,0.108129]
[1732084546136,0.10906255,92484.0,92480.0,0.10813]
[1732084546137,0.10906255,92484.0,92482.0,0.108128]
[1732084547207,0.10906255,92484.0,92480.0,0.10813]
[1732084547411,0.10906255,92484.0,92482.0,0.108128]
[1732084548416,0.10906255,92484.0,92472.0,0.13977001]
[1732084548616,0.10906255,92484.0,92482.0,0.108128]
[1732084550085,0.10906255,92484.0,92482.0,0.216256]
[1732084550361,0.10906255,92484.0,92478.0,0.108133]
[1732084550514,0.10906255,92484.0,92481.0,0.108129]
[1732084550722,0.10906255,92484.0,92482.0,0.108128]
[1732084550922,0.10906255,92484.0,92481.0,0.216258]
[1732084551176,0.10906255,92484.0,92482.0,0.108128]
[1732084551384,0.10906255,92484.0,92477.0,0.108134]
[1732084551642,0.10906255,92484.0,92481.0,0.108129]
[1732084551859,0.10906255,92484.0,92472.0,0.04277588]
[1732084551860,0.10906255,92484.0,92472.0,0.13976815]
[1732084552076,0.10906255,92484.0,92480.0,0.10813]
[1732084552482,0.10906255,92484.0,92473.0,0.108139]
[1732084552690,0.10906255,92484.0,92469.0,0.09699227]
[1732084552911,0.13,92478.0,92470.0,0.108143]
[1732084553114,0.10906255,92477.0,92470.0,0.216286]
[1732084553341,0.10906255,92477.0,92471.0,0.0021626]
[1732084553545,0.10906255,92477.0,92474.0,0.108137]
[1732084553752,0.10906255,92477.0,92472.0,0.10814]
[1732084553961,0.10906255,92477.0,92475.0,0.108136]
[1732084554170,0.10906255,92477.0,92476.0,0.108136]
[1732084555438,0.10906255,92477.0,92475.0,0.108136]
[1732084555640,0.10906255,92477.0,92475.0,0.216272]
[1732084555780,0.10906255,92477.0,92475.0,0.108136]
[1732084556173,0.10906255,92477.0,92476.0,0.108136]
[1732084556401,0.0807,92478.0,92477.0,0.108134]
[1732084556608,0.0510098,92484.0,92483.0,0.108127]
[1732084556812,0.16007235,92484.0,92481.0,0.108129]
[1732084557019,0.10906255,92483.0,92481.0,0.108129]
[1732084557242,0.10906255,92483.0,92482.0,0.108129]
[1732084566589,0.0510098,92484.0,92483.0,0.108127]
[1732084566858,0.0017098,92484.0,92483.0,0.11028938]
[1732084567044,0.0017098,92484.0,92483.0,0.11028929]
[1732084567283,0.05101,92497.0,92496.0,0.108112]
[1732084567687,0.00171,92497.0,92496.0,0.108112]
[1732084568621,0.2745,92504.0,92498.0,0.01]
[1732084568830,0.0807,92519.0,92513.0,0.208092]
[1732084569029,0.0807,92526.0,92513.0,0.29396284]
[1732084569179,0.0493,92529.0,92514.0,0.218091]
[1732084569395,0.0807,92532.0,92518.0,0.02]
[1732084569595,0.13,92540.0,92528.0,0.08370929]
[1732084569820,0.13,92540.0,92539.0,0.108062]
[1732084570175,0.13,92540.0,92536.0,0.108065]
[1732084570377,0.13,92540.0,92538.0,0.108063]
[1732084571036,0.13,92540.0,92534.0,0.108067]
[1732084571222,0.13,92540.0,92536.0,0.108064]
[1732084571674,0.13,92540.0,92530.0,0.108071]
[1732084571675,0.10906255,92539.0,92530.0,0.108071]
[1732084571884,0.10906255,92539.0,92538.0,0.108063]
[1732084572080,0.10906255,92539.0,92536.0,0.108065]
[1732084573326,0.10906255,92539.0,92536.0,0.21613]
[1732084573492,0.10906255,92539.0,92537.0,0.108064]
[1732084574533,0.10906255,92539.0,92538.0,0.108063]
[1732084575324,0.10906255,92539.0,92537.0,0.108064]
[1732084575923,0.10906255,92539.0,92538.0,0.108063]
[1732084576341,0.13,92540.0,92538.0,0.108063]
[1732084576342,0.0807,92540.0,92539.0,0.108062]
[1732084576511,0.27479895,92546.0,92542.0,0.108059]
[1732084576714,0.0474,92549.0,92539.0,0.108062]
[1732084576715,0.0474,92549.0,92545.0,0.108055]
[1732084576977,0.10906255,92548.0,92530.0,0.15157807]
[1732084577179,0.216108,92546.0,92533.0,0.108068]
[1732084577403,0.216113,92544.0,92531.0,0.108071]
[1732084577600,0.10806,92542.0,92531.0,0.1]
[1732084577821,0.10906255,92541.0,92531.0,0.1]
[1732084578066,0.10906255,92541.0,92523.0,0.01]
[1732084578283,0.10906255,92541.0,92528.0,0.108074]
[1732084578284,0.1231,92536.0,92528.0,0.108074]
[1732084578505,0.1231,92536.0,92530.0,0.108072]
[1732084578506,0.10906255,92535.0,92530.0,0.108072]
[1732084578707,0.10906255,92535.0,92531.0,0.108071]
[1732084579134,0.10906255,92535.0,92528.0,0.108074]
[1732084579344,0.10906255,92535.0,92529.0,0.108073]
[1732084579979,0.10906255,92535.0,92530.0,0.108072]
[1732084582634,0.1231,92536.0,92533.0,0.108069]
[1732084582837,0.1231,92536.0,92529.0,0.00216126]
[1732084582838,0.1231,92546.0,92545.0,0.108055]
[1732084583043,0.0757,92546.0,92545.0,0.108055]
[1732084583708,0.0757,92546.0,92534.0,0.118067]
[1732084583833,0.0757,92546.0,92540.0,0.21612]
[1732084584038,0.0757,92546.0,92543.0,0.108057]
[1732084584481,0.0757,92546.0,92542.0,0.108058]
[1732084584682,0.0757,92546.0,92543.0,0.108057]
[1732084584906,0.10906255,92545.0,92536.0,0.108065]
[1732084585116,0.10906255,92545.0,92536.0,0.1]
[1732084585332,0.21711855,92545.0,92536.0,0.1]
[1732084585534,0.10906255,92545.0,92539.0,0.108061]
[1732084585959,0.10906255,92545.0,92537.0,0.108064]
[1732084586557,0.21711855,92545.0,92537.0,0.108064]
[1732084586722,0.21711855,92545.0,92534.0,0.108068]
[1732084586723,0.0465,92540.0,92534.0,0.108068]
[1732084586927,0.10906255,92539.0,92534.0,0.11022914]
[1732084587187,0.10906255,92539.0,92534.0,0.108068]
[1732084587744,0.184889,92516.0,92497.0,0.01]
[1732084587935,0.10906255,92506.0,92495.0,0.108113]
[1732084588136,0.04896534,92515.0,92493.0,0.01127806]
[1732084588137,0.0768,92510.0,92506.0,0.1081]
[1732084588475,0.0768,92510.0,92509.0,0.108097]
[1732084588695,0.0768,92524.0,92523.0,0.108081]
[1732084589143,0.0768,92524.0,92521.0,0.00216144]
[1732084589364,0.0768,92524.0,92522.0,0.108081]
[1732084589587,0.0768,92524.0,92522.0,0.108082]
[1732084590065,0.0768,92524.0,92521.0,0.10216145]
[1732084590271,0.0768,92524.0,92521.0,0.1]
[1732084590477,0.0768,92524.0,92522.0,0.108081]
[1732084590690,0.0768,92524.0,92523.0,0.108081]
[1732084590908,0.0768,92533.0,92532.0,0.10807]
[1732084591127,0.18586255,92533.0,92532.0,0.10807]
[1732084591604,0.2765,92542.0,92541.0,0.10806]
[1732084591867,0.0017098,92548.0,92547.0,0.108053]
[1732084594107,0.0017098,92548.0,92537.0,0.01]
[1732084594108,0.11077235,92548.0,92537.0,0.01]
[1732084594312,0.21711555,92547.0,92539.0,0.108061]
[1732084594522,0.21711555,92547.0,92540.0,0.1]
[1732084594727,0.108054,92546.0,92540.0,0.1]
[1732084594935,0.10906255,92545.0,92540.0,0.1]
[1732084595156,0.10906255,92545.0,92540.0,0.20806]
[1732084597673,0.10906255,92545.0,92535.0,0.1]
[1732084597881,0.21711855,92545.0,92538.0,0.1]
[1732084598318,0.10906255,92545.0,92538.0,0.1]
[1732084598759,0.10906255,92545.0,92538.0,0.208063]
[1732084598976,0.10906255,92545.0,92540.0,0.1]
[1732084599211,0.10906255,92545.0,92542.0,0.108059]
[1732084599417,0.10906255,92545.0,92540.0,0.1]
[1732084599418,0.108056,92544.0,92540.0,0.1]
[1732084599637,0.10906255,92543.0,92540.0,0.1]
[1732084599849,0.10906255,92543.0,92538.0,0.108063]
[1732084600082,0.10906255,92543.0,92536.0,0.108065]
[1732084600288,0.10906255,92543.0,92537.0,0.108064]
[1732084600490,0.10906255,92543.0,92537.0,0.108063]
[1732084600706,0.10906255,92543.0,92538.0,0.108063]
[1732084600922,0.10906255,92543.0,92537.0,0.108063]
[1732084601124,0.10906255,92543.0,92539.0,0.108062]
[1732084601797,0.10906255,92543.0,92537.0,0.108063]
[1732084602011,0.0017098,92548.0,92535.0,0.01]
[1732084602240,0.11077235,92548.0,92543.0,0.108057]
[1732084602454,0.10906255,92547.0,92537.0,0.108063]
[1732084602730,0.10906255,92547.0,92535.0,0.1]
[1732084602948,0.21711555,92547.0,92540.0,0.108061]
[1732084603381,0.21711555,92547.0,92535.0,0.1]
[1732084603382,0.108056,92544.0,92535.0,0.1]
[1732084603610,0.108055,92546.0,92533.0,0.01]
[1732084603831,0.10906255,92545.0,92540.0,0.10806]
[1732084604315,0.10906255,92545.0,92539.0,0.108061]
[1732084604756,0.10906255,92545.0,92542.0,0.108058]
[1732084604978,0.10906255,92545.0,92540.0,0.10806]
[1732084605236,0.10906255,92545.0,92536.0,0.108066]
[1732084605237,0.108059,92542.0,92536.0,0.108066]
[1732084605458,0.0762,92541.0,92536.0,0.216131]
[1732084605675,0.0762,92541.0,92537.0,0.108064]
[1732084606322,0.0762,92541.0,92538.0,0.108063]
[1732084606758,0.108064,92538.0,92533.0,0.108069]
[1732084606981,0.108064,92538.0,92533.0,0.216138]
[1732084607399,0.10906255,92540.0,92534.0,0.108068]
[1732084607400,0.108062,92539.0,92534.0,0.108068]
[1732084607621,0.21712455,92539.0,92534.0,0.108068]
[1732084608292,0.10906255,92539.0,92534.0,0.216136]
[1732084608498,0.216129,92537.0,92531.0,0.0017088]
[1732084608716,0.108068,92534.0,92531.0,0.0017088]
[1732084608912,0.21713255,92533.0,92531.0,0.0017088]
[1732084609154,0.10906255,92533.0,92531.0,0.0017088]
[1732084610239,0.10807,92532.0,92531.0,0.0017088]
[1732084610441,0.21713255,92532.0,92531.0,0.0017088]
[1732084611278,0.29333255,92532.0,92531.0,0.0017088]
[1732084611965,0.34003255,92532.0,92531.0,0.0017088]
[1732084624737,0.23196255,92532.0,92512.0,0.118903]
[1732084624951,0.0762,92516.0,92512.0,0.118903]
[1732084625774,0.0762,92516.0,92511.0,0.1089485]
[1732084626223,0.0762,92516.0,92512.0,0.108094]
[1732084626862,0.0762,92516.0,92513.0,0.108092]
[1732084627313,0.0762,92516.0,92514.0,0.10809]
[1732084627540,0.0762,92516.0,92514.0,0.21618]
[1732084627752,0.0762,92516.0,92515.0,0.10809]
[1732084628004,0.15576255,92531.0,92515.0,0.00185818]
[1732084628237,0.12709029,92548.0,92515.0,0.00185818]
[1732084628238,0.0770544,92539.0,92535.0,0.108066]
[1732084628458,0.0770544,92539.0,92537.0,0.108064]
[1732084628459,0.10906255,92538.0,92537.0,0.108064]
[1732084628887,0.0008544,92539.0,92538.0,0.108063]
[1732084629107,0.0008544,92539.0,92538.0,0.10991901]
[1732084630210,0.0008544,92539.0,92538.0,0.108063]
[1732084630633,0.0008544,92539.0,92538.0,0.10991914]
[1732084630837,0.0008544,92539.0,92538.0,0.108063]
[1732084631060,0.0008544,92539.0,92538.0,0.10991917]
[1732084631303,0.0008544,92539.0,92538.0,0.11991917]
[1732084631501,0.0008544,92539.0,92538.0,0.21991917]
[1732084631955,0.0008544,92539.0,92538.0,0.22991917]
[1732084632163,0.0008544,92539.0,92538.0,0.228063]
[1732084635900,0.0008544,92539.0,92538.0,0.251063]
[1732084636789,0.0008544,92539.0,92538.0,0.256163]
[1732084637014,0.0008544,92539.0,92538.0,0.35277751]
[1732084637226,0.0008544,92539.0,92538.0,0.39881649]
[1732084637661,0.0008544,92539.0,92538.0,0.302263]
[1732084639848,0.0008544,92539.0,92538.0,0.297163]
[1732084640087,0.0008544,92539.0,92538.0,0.251063]
[1732084640755,0.0008544,92539.0,92538.0,0.208063]
[1732084641017,0.0008544,92539.0,92533.0,0.108069]
[1732084641250,0.0008544,92539.0,92531.0,0.0017088]
[1732084641251,0.0008544,92539.0,92536.0,0.21613]
[1732084641470,0.0008544,92539.0,92536.0,0.108065]
[1732084641693,0.10906255,92538.0,92536.0,0.108065]
[1732084642823,0.10906255,92538.0,92537.0,0.108064]
[1732084643909,0.0008544,92539.0,92537.0,0.108064]
[1732084643910,0.0008544,92539.0,92538.0,0.118063]
[1732084644114,0.0008544,92539.0,92538.0,0.11991895]